bitfinex/quotes_SOLUSD_20250219
["timestamp","ask_amount","ask_price","bid_price","bid_amount"]
[1739959793360,19.24954853,171.3,171.29,0.063]
[1739959793663,32.64132419,171.3,171.29,0.063]
[1739959794450,30.64049375,171.3,171.29,0.063]
[1739959795567,13.39177566,171.33,171.29,0.063]
[1739959795766,18.05177566,171.33,171.29,0.063]
[1739959796354,13.41184853,171.32,171.29,0.063]
[1739959796665,26.80362419,171.32,171.29,0.063]
[1739959798337,32.64072419,171.32,171.29,0.063]
[1739959798863,19.24894853,171.32,171.29,0.063]
[1739959799059,82.7,171.37,171.3,13.39177566]
[1739959799060,8.68928806,171.37,171.3,13.39177566]
[1739959799379,19.22707566,171.37,171.31,13.39177566]
[1739959800239,92.66,171.38,171.35,13.39177566]
[1739959800463,92.66,171.38,171.35,94.29177566]
[1739959800851,0.063,171.37,171.35,80.9]
[1739959801069,26.86662419,171.37,171.35,80.9]
[1739959801269,26.80362419,171.36,171.35,80.9]
[1739959802436,0.063,171.37,171.35,80.9]
[1739959802944,32.70202419,171.37,171.35,80.9]
[1739959803146,13.41184853,171.36,171.35,80.9]
[1739959804441,26.80362419,171.36,171.35,80.9]
[1739959804667,32.63922419,171.36,171.35,80.9]
[1739959805551,32.63922419,171.36,171.31,219.2]
[1739959805855,19.24744853,171.36,171.31,94.29177566]
[1739959806770,0.063,171.37,171.32,13.39177566]
[1739959807471,0.063,171.37,171.33,13.39177566]
[1739959807843,0.063,171.37,171.34,13.39177566]
[1739959808248,0.063,171.37,171.36,13.39177566]
[1739959808468,0.063,171.37,171.36,94.29177566]
[1739959808674,0.063,171.37,171.36,80.9]
[1739959809774,13.45477566,171.37,171.36,80.9]
[1739959810478,19.29007566,171.37,171.36,80.9]
[1739959811378,32.70192419,171.37,171.31,232.59177566]
[1739959811956,0.063,171.37,171.33,13.39177566]
[1739959812176,0.063,171.37,171.35,13.39177566]
[1739959812377,0.063,171.37,171.36,13.39177566]
[1739959812558,0.063,171.37,171.36,219.2]
[1739959816586,0.063,171.37,171.36,232.59177566]
[1739959816758,0.063,171.37,171.36,238.42737566]
[1739959817165,0.063,171.37,171.36,252.88617566]
[1739959817368,0.063,171.37,171.36,233.6588]
[1739959817568,0.063,171.37,171.36,219.2]
[1739959818363,0.063,171.37,171.36,232.59177566]
[1739959818684,0.063,171.37,171.36,238.42737566]
[1739959819374,0.063,171.37,171.36,251.81915132]
[1739959819688,0.063,171.37,171.36,263.10105132]
[1739959819859,0.063,171.37,171.36,249.70927566]
[1739959820661,0.063,171.37,171.36,243.87367566]
[1739959821364,0.063,171.37,171.36,219.2]
[1739959821576,0.063,171.37,171.36,80.9]
[1739959823291,0.063,171.37,171.36,94.29177566]
[1739959824963,0.063,171.37,171.36,80.9]
[1739959826163,0.063,171.37,171.32,246.87787566]
[1739959826369,0.063,171.37,171.33,13.39177566]
[1739959827899,0.063,171.37,171.32,252.71477566]
[1739959828203,0.063,171.37,171.32,235.59597566]
[1739959830003,0.063,171.37,171.32,232.59177566]
[1739959831208,13.39177566,171.36,171.32,219.2]
[1739959831910,13.39177566,171.35,171.32,219.2]
[1739959832274,19.22797566,171.35,171.32,219.2]
[1739959833404,5.8362,171.35,171.32,219.2]
[1739959834073,19.22747566,171.36,171.32,219.2]
[1739959835174,19.22747566,171.36,171.32,80.9]
[1739959836600,5.8357,171.36,171.32,80.9]
[1739959836995,26.86662419,171.37,171.32,80.9]
[1739959837202,0.063,171.37,171.33,13.39177566]
[1739959838271,0.063,171.37,171.34,13.39177566]
[1739959839975,0.063,171.37,171.33,13.39177566]
[1739959841105,0.063,171.37,171.34,13.39177566]
[1739959841401,0.063,171.37,171.33,219.2]
[1739959842085,0.063,171.37,171.33,232.59177566]
[1739959842605,0.063,171.37,171.35,13.39177566]
[1739959843115,0.063,171.37,171.34,13.39177566]
[1739959843310,0.063,171.37,171.33,219.2]
[1739959843617,0.063,171.37,171.33,232.59177566]
[1739959844099,0.063,171.37,171.33,238.42827566]
[1739959844295,0.063,171.37,171.34,13.39177566]
[1739959844498,0.063,171.37,171.36,13.39177566]
[1739959845075,0.063,171.37,171.36,232.59177566]
[1739959845272,0.063,171.37,171.36,248.82575132]
[1739959846781,0.063,171.37,171.36,254.66135132]
[1739959847704,0.0001,171.37,171.36,254.66135132]
[1739959847907,0.063,171.41,171.36,271.25045132]
[1739959848202,0.063,171.41,171.4,13.39177566]
[1739959848396,9.19304566,171.51,171.47,13.39177566]
[1739959848701,9.19304566,171.51,171.47,232.59177566]
[1739959848902,5.8935,171.51,171.47,232.59177566]
[1739959849097,0.063,171.51,171.47,232.59177566]
[1739959849496,0.063,171.51,171.48,13.39177566]
[1739959850975,0.063,171.51,171.48,219.2]
[1739959851176,0.063,171.51,171.5,13.39177566]
[1739959851500,0.063,171.51,171.5,232.59177566]
[1739959855618,0.063,171.51,171.5,219.2]
[1739959857526,26.86662419,171.51,171.5,219.2]
[1739959857693,13.41184853,171.5,171.44,219.2]
[1739959857892,13.39177566,171.48,171.44,219.2]
[1739959858810,13.39177566,171.49,171.44,219.2]
[1739959859313,19.22317566,171.49,171.44,219.2]
[1739959860915,5.8314,171.49,171.44,232.59177566]
[1739959861229,13.39177566,171.45,171.44,80.9]
[1739959861528,5.8937,171.51,171.44,232.59177566]
[1739959861705,5.8937,171.51,171.47,13.39177566]
[1739959861890,0.063,171.51,171.5,13.39177566]
[1739959862095,0.063,171.51,171.5,232.59177566]
[1739959863408,0.063,171.51,171.5,231.37177566]
[1739959863603,0.063,171.51,171.5,237.20267566]
[1739959866023,0.063,171.51,171.5,231.37177566]
[1739959867498,0.063,171.51,171.5,237.20267566]
[1739959867994,0.063,171.51,171.5,231.37177566]
[1739959868306,0.063,171.51,171.5,237.20267566]
[1739959870618,0.063,171.51,171.5,219.2]
[1739959870822,13.45477566,171.51,171.5,80.9]
[1739959871323,26.86662419,171.51,171.5,80.9]
[1739959871710,32.69712419,171.51,171.5,80.9]
[1739959874924,13.41184853,171.5,171.42,219.2]
[1739959875223,13.39177566,171.46,171.42,219.2]
[1739959877514,19.22397566,171.46,171.42,219.2]
[1739959879030,13.39177566,171.44,171.42,219.2]
[1739959879237,13.39177566,171.44,171.42,80.9]
[1739959880410,5.8936,171.51,171.43,19.22497566]
[1739959880605,19.28537566,171.51,171.45,13.39177566]
[1739959880835,26.80362419,171.5,171.44,13.39177566]
[1739959881046,0.063,171.51,171.48,13.39177566]
[1739959881348,0.063,171.51,171.48,219.2]
[1739959882616,0.063,171.51,171.5,21.40114912]
[1739959883517,0.063,171.51,171.5,246.43204912]
[1739959884623,0.063,171.51,171.5,259.69784912]
[1739959886939,0.063,171.51,171.5,258.69784912]
[1739959887328,0.063,171.51,171.5,259.69784912]
[1739959888244,0.0001,171.51,171.5,259.69784912]
[1739959889540,0.0001,171.51,171.5,277.02099765]
[1739959890047,0.063,171.55,171.54,20.0]
[1739959890249,0.063,171.55,171.54,260.60114912]
[1739959890427,0.063,171.55,171.54,240.60114912]
[1739959890948,0.063,171.55,171.54,219.2]
[1739959891127,0.063,171.55,171.54,240.60114912]
[1739959891452,0.063,171.55,171.54,246.43064912]
[1739959893256,0.0001,171.55,171.54,246.43064912]
[1739959893428,0.063,171.59,171.58,20.0]
[1739959893621,0.063,171.59,171.58,273.09801445]
[1739959893832,0.063,171.59,171.58,272.22414912]
[1739959895051,0.03,171.65,171.59,21.3974]
[1739959895257,0.03,171.65,171.64,21.40114912]
[1739959895551,0.03,171.65,171.64,241.47466984]
[1739959895751,0.03,171.65,171.64,240.60104912]
[1739959897148,0.03,171.65,171.64,246.42714912]
[1739959901148,21.43114912,171.65,171.64,80.8999]
[1739959901657,34.84299765,171.65,171.64,80.8999]
[1739959903456,40.66879765,171.65,171.64,80.8999]
[1739959905162,55.23329765,171.65,171.56,186.8205]
[1739959905365,5.8278,171.59,171.56,186.8205]
[1739959905659,21.40114912,171.58,171.56,48.5205]
[1739959905867,21.40114912,171.57,171.56,48.5205]
[1739959906174,34.81299765,171.57,171.5,186.8205]
[1739959906346,21.40114912,171.53,171.5,48.5205]
[1739959906677,4.64,171.56,171.5,48.5205]
[1739959906678,21.40114912,171.52,171.5,48.5205]
[1739959906843,21.40114912,171.51,171.5,48.5205]
[1739959907041,4.64,171.56,171.5,48.5205]
[1739959907359,10.4689,171.56,171.54,0.03]
[1739959907560,31.87004912,171.56,171.54,48.5505]
[1739959908543,10.4689,171.56,171.54,48.5505]
[1739959909665,5.8289,171.56,171.54,48.5505]
[1739959909858,27.23004912,171.56,171.54,48.5505]
[1739959910053,27.22924912,171.59,171.54,48.5505]
[1739959911862,21.40114912,171.57,171.54,48.5505]
[1739959912065,21.40114912,171.56,171.54,48.5505]
[1739959912468,21.40114912,171.55,171.54,48.5505]
[1739959913775,27.23034912,171.55,171.54,48.5505]
[1739959914273,27.23034912,171.55,171.54,0.03]
[1739959914274,40.64219765,171.55,171.54,0.03]
[1739959914978,52.69969765,171.55,171.54,0.03]
[1739959915704,20.0,171.52,171.51,48.5205]
[1739959915861,13.41184853,171.51,171.46,48.5205]
[1739959916194,21.40114912,171.47,171.46,48.5205]
[1739959916972,34.81299765,171.47,171.46,48.5205]
[1739959917890,40.64489765,171.47,171.46,48.5205]
[1739959920579,20.0,171.5,171.46,48.5205]
[1739959920768,41.40114912,171.5,171.46,48.5205]
[1739959920970,5.8285,171.57,171.49,21.40114912]
[1739959921195,27.22964912,171.57,171.51,21.40114912]
[1739959921395,27.22964912,171.57,171.51,208.22164912]
[1739959921604,21.40114912,171.56,171.51,186.8205]
[1739959921787,21.40114912,171.55,171.51,186.8205]
[1739959922118,21.40114912,171.54,171.51,186.8205]
[1739959922404,21.40114912,171.52,171.51,186.8205]
[1739959922577,40.64319765,171.52,171.51,48.5205]
[1739959923776,13.41184853,171.51,171.44,157.1806]
[1739959923977,13.41184853,171.51,171.44,18.8806]
[1739959924291,21.40114912,171.5,171.44,40.28174912]
[1739959924669,27.23234912,171.49,171.44,18.8806]
[1739959924873,21.40114912,171.48,171.44,18.8806]
[1739959925081,21.40114912,171.48,171.44,157.1806]
[1739959925800,21.40114912,171.47,171.44,157.1806]
[1739959926304,21.40114912,171.48,171.44,157.1806]
[1739959927603,27.23294912,171.48,171.44,157.1806]
[1739959928100,21.40114912,171.46,171.44,157.1806]
[1739959928284,5.8318,171.48,171.44,157.1806]
[1739959928285,21.40114912,171.45,171.44,157.1806]
[1739959929800,27.23374912,171.45,171.44,157.1806]
[1739959930200,27.23374912,171.45,171.44,157.2106]
[1739959931289,98.3909,171.51,171.44,157.2106]
[1739959931581,21.40114912,171.49,171.44,157.2106]
[1739959931781,13.41184853,171.5,171.44,157.2106]
[1739959932003,21.40114912,171.49,171.44,157.2106]
[1739959932703,21.40114912,171.48,171.44,157.2106]
[1739959934606,21.40114912,171.48,171.44,163.0435]
[1739959935185,27.23264912,171.48,171.44,157.2106]
[1739959935611,21.40114912,171.5,171.44,184.44454912]
[1739959935903,0.095,171.52,171.49,21.40114912]
[1739959936084,0.095,171.52,171.51,21.40114912]
[1739959937015,0.095,171.52,171.51,34.81299765]
[1739959937209,0.095,171.52,171.51,190.76874912]
[1739959937405,0.095,171.52,171.51,196.59924912]
[1739959938291,0.095,171.52,171.51,190.76874912]
[1739959938698,0.095,171.52,171.51,196.59924912]
[1739959942102,0.095,171.52,171.51,196.62924912]
[1739959942300,0.158,171.52,171.51,196.62924912]
[1739959943008,0.063,171.52,171.51,196.53424912]
[1739959944526,0.063,171.52,171.51,197.53424912]
[1739959945018,0.063,171.52,171.51,196.53424912]
[1739959945220,0.063,171.54,171.52,18.8176]
[1739959945611,0.063,171.54,171.53,21.40114912]
[1739959945809,0.063,171.54,171.53,178.51874912]
[1739959948399,0.063,171.54,171.53,184.34854912]
[1739959948813,0.063,171.54,171.53,209.76369824]
[1739959949018,0.063,171.54,171.53,210.76369824]
[1739959949723,0.03,171.65,171.54,2.0]
[1739959949921,13.44184853,171.65,171.6,21.40114912]
[1739959950125,13.44184853,171.65,171.6,178.51874912]
[1739959950295,13.44184853,171.65,171.6,157.1176]
[1739959950296,0.03,171.65,171.6,157.1176]
[1739959950497,0.03,171.65,171.64,21.40114912]
[1739959950728,0.03,171.65,171.64,178.51874912]
[1739959951704,0.03,171.65,171.64,184.34484912]
[1739959952307,0.03,171.65,171.64,185.34484912]
[1739959952502,0.063,171.69,171.65,18.7876]
[1739959952825,0.063,171.69,171.68,21.40114912]
[1739959957224,0.063,171.69,171.68,178.48874912]
[1739959959244,0.063,171.7,171.69,18.7246]
[1739959959407,0.063,171.7,171.69,178.42574912]
[1739959960344,0.063,171.7,171.69,179.42574912]
[1739959960710,0.063,171.7,171.69,180.42574912]
[1739959961433,0.063,171.7,171.69,185.25014912]
[1739959963320,0.063,171.7,171.69,186.25014912]
[1739959963538,0.0001,171.7,171.69,198.80324912]
[1739959966224,0.063,171.73,171.72,2.0]
[1739959966426,0.063,171.73,171.72,45.67530965]
[1739959966634,0.063,171.73,171.72,42.95567264]
[1739959967216,0.063,171.73,171.72,29.54382411]
[1739959967617,0.063,171.73,171.72,35.36722411]
[1739959968041,0.063,171.73,171.72,21.03181776]
[1739959968547,0.063,171.73,171.72,20.03181776]
[1739959969437,0.063,171.73,171.72,19.15880635]
[1739959970843,0.063,171.73,171.72,13.33540635]
[1739959971217,0.063,171.73,171.71,32.05990635]
[1739959971724,0.063,171.73,171.71,170.35990635]
[1739959971924,0.063,171.73,171.72,14.20874668]
[1739959972724,0.063,171.73,171.72,13.33540635]
[1739959974746,0.063,171.73,171.72,19.15880635]
[1739959975041,0.063,171.73,171.72,20.03204421]
[1739959975220,0.063,171.73,171.72,19.15880635]
[1739959977751,0.03,171.78,171.73,18.6615]
[1739959977952,0.03,171.78,171.75,13.33540635]
[1739959978157,0.03,171.78,171.74,13.33540635]
[1739959981067,0.03,171.78,171.77,13.33540635]
[1739959981268,0.03,171.78,171.77,170.29690635]
[1739959982253,0.03,171.78,171.77,156.9615]
[1739959982953,13.36540635,171.78,171.77,156.9615]
[1739959983153,0.03,171.78,171.77,156.9615]
[1739959984552,0.03,171.78,171.77,170.29690635]
[1739959985361,0.03,171.78,171.77,176.11860635]
[1739959987258,0.03,171.78,171.77,170.29690635]
[1739959988359,0.03,171.78,171.77,176.11860635]
[1739959995163,0.03,171.78,171.77,170.29690635]
[1739959995486,0.03,171.78,171.77,176.11860635]
[1739959996489,0.258,171.83,171.78,18.6315]
[1739959996669,0.258,171.83,171.8,13.33540635]
[1739959997289,0.258,171.83,171.81,13.33540635]
[1739959997592,0.258,171.83,171.82,13.33540635]
[1739959997788,0.258,171.83,171.82,170.26690635]
[1739959998869,0.258,171.83,171.82,156.9315]
[1739959999058,0.258,171.83,171.82,170.26690635]
[1739959999258,0.258,171.83,171.82,156.9315]
[1739959999460,0.258,171.83,171.82,176.08690635]
[1739959999881,0.03,171.88,171.87,1.0]
[1739960000082,0.06856276,171.96,171.87,1.0]
[1739960000083,6.276e-05,171.96,171.95,39.55]
[1739960000408,9.13004566,172.01,171.99,19.55]
[1739960000692,18.26009133,172.02,172.01,22.0]
[1739960000859,18.26009133,172.02,172.01,38.94702386]
[1739960001067,18.26009133,172.02,172.01,18.07540635]
[1739960001403,0.18,172.04,172.03,1.0]
[1739960001607,0.18,172.04,172.03,185.55031634]
[1739960001900,0.18,172.04,172.03,171.26690635]
[1739960002063,0.18,172.04,172.03,176.07980635]
[1739960002266,0.18,172.04,172.03,156.9315]
[1739960002482,0.18,172.04,172.03,170.26690635]
[1739960003613,0.18,172.04,172.03,156.9315]
[1739960003913,0.18,172.04,172.03,170.26690635]
[1739960004979,20.0,172.12,172.04,18.4515]
[1739960005183,13.33540635,172.1,172.04,170.08690635]
[1739960005593,13.33540635,172.08,172.05,1.0]
[1739960005893,4.76,172.1,172.06,52.79147447]
[1739960006099,5.8109,172.09,172.06,71.24297447]
[1739960006666,5.8109,172.09,172.06,18.4515]
[1739960006872,13.33540635,172.07,172.06,18.4515]
[1739960007284,19.14690635,172.07,172.06,18.4515]
[1739960008099,3.1207,172.06,172.01,153.5887]
[1739960008274,13.33540635,172.02,172.01,153.5887]
[1739960009486,19.14860635,172.02,172.01,153.5887]
[1739960010186,19.14860635,172.02,172.01,15.2887]
[1739960010383,5.8132,172.02,172.01,15.2887]
[1739960010693,13.33540635,172.03,172.01,153.5887]
[1739960010871,5.8109,172.09,172.01,154.5887]
[1739960011073,13.33540635,172.06,172.03,1.0]
[1739960011378,13.33540635,172.06,172.02,1.0]
[1739960011697,13.33540635,172.03,172.01,154.5887]
[1739960012493,14.5272,172.09,172.03,1.0]
[1739960012672,13.33540635,172.06,172.03,154.5887]
[1739960012873,13.33540635,172.07,172.05,1.0]
[1739960013068,13.33540635,172.07,172.05,154.5887]
[1739960013470,13.33540635,172.06,172.05,153.5887]
[1739960015401,19.14730635,172.06,172.05,153.5887]
[1739960015997,13.33540635,172.07,172.05,154.5887]
[1739960016378,19.14690635,172.08,172.05,154.5887]
[1739960016893,13.33540635,172.07,172.05,154.5887]
[1739960017116,13.33540635,172.06,172.05,154.5887]
[1739960017782,11.6163,172.1,172.06,1.0]
[1739960017990,13.33540635,172.08,172.07,1.0]
[1739960018206,13.33540635,172.08,172.07,154.5887]
[1739960019089,19.14660635,172.08,172.07,153.5887]
[1739960019289,19.14660635,172.08,172.07,154.5887]
[1739960019518,19.14660635,172.08,172.07,153.5887]
[1739960020923,19.14660635,172.08,172.07,154.5887]
[1739960021211,19.14660635,172.08,172.07,153.5887]
[1739960024312,13.33540635,172.08,172.07,154.5887]
[1739960024815,5.8112,172.08,172.07,154.5887]
[1739960025124,19.14660635,172.08,172.07,154.5887]
[1739960025914,13.33540635,172.09,172.07,154.5887]
[1739960026818,13.33540635,172.08,172.07,154.5887]
[1739960027029,14.5226,172.15,172.11,1.0]
[1739960027216,13.33540635,172.13,172.12,1.0]
[1739960027393,13.33540635,172.13,172.12,154.5887]
[1739960027598,19.14460635,172.14,172.12,154.5887]
[1739960027818,13.33540635,172.13,172.12,154.5887]
[1739960028828,5.8095,172.13,172.12,154.5887]
[1739960029006,19.14490635,172.13,172.12,154.5887]
[1739960029397,5.8095,172.13,172.12,154.5887]
[1739960029706,13.33540635,172.13,172.12,154.5887]
[1739960029915,13.33540635,172.13,172.12,153.5887]
[1739960030213,20.0,172.14,172.12,153.5887]
[1739960030214,13.33540635,172.15,172.12,154.5887]
[1739960031001,13.33540635,172.14,172.12,154.5887]
[1739960031531,13.33540635,172.15,172.12,154.5887]
[1739960031897,13.33540635,172.15,172.13,1.0]
[1739960032111,5.8082,172.17,172.14,1.0]
[1739960032310,19.14330635,172.18,172.14,1.0]
[1739960032618,13.33540635,172.16,172.14,154.5887]
[1739960034036,25.8075,172.19,172.16,1.0]
[1739960034225,13.33540635,172.17,172.16,153.5887]
[1739960035137,19.14360635,172.17,172.16,153.5887]
[1739960035817,46.9995127,172.17,172.1,153.5887]
[1739960036017,13.33540635,172.11,172.1,154.5887]
[1739960037058,13.33540635,172.12,172.1,154.5887]
[1739960037225,13.33540635,172.13,172.1,154.5887]
[1739960038743,19.14510635,172.13,172.1,154.5887]
[1739960040842,13.33540635,172.11,172.1,153.5887]
[1739960041224,13.33540635,172.11,172.1,15.2887]
[1739960041626,13.33540635,172.11,172.1,3.6364457]
[1739960042747,1.0,172.06,172.01,219.2]
[1739960043044,13.33540635,172.02,172.01,55.1340659]
[1739960043444,13.33540635,172.02,172.01,25.3500659]
[1739960043650,26.74725488,172.02,172.0,6.59e-05]
[1739960043829,26.74725488,172.01,172.0,6.59e-05]
[1739960044460,20.0,171.97,171.96,80.9]
[1739960044760,25.8149,171.97,171.96,80.9]
[1739960045230,5.8149,171.97,171.96,81.9]
[1739960045425,5.8146,171.98,171.96,81.9]
[1739960045625,19.15000635,171.98,171.96,81.9]
[1739960046427,4.68,171.99,171.97,1.0]
[1739960046749,5.8142,172.0,171.98,1.0]
[1739960047834,5.8142,172.0,171.97,220.2]
[1739960048238,19.14960635,172.0,171.97,219.2]
[1739960048435,19.14960635,172.0,171.98,1.0]
[1739960048755,19.14960635,172.0,171.97,219.2]
[1739960049136,19.14960635,172.0,171.97,220.2]
[1739960049335,19.14960635,172.0,171.97,219.2]
[1739960049535,13.33540635,171.99,171.97,219.2]
[1739960050369,19.14900635,172.01,171.97,220.2]
[1739960050650,19.14900635,172.01,171.97,81.9]
[1739960053446,19.14900635,172.01,171.97,81.963]
[1739960053627,13.33540635,172.01,171.98,1.0]
[1739960053830,13.33540635,172.01,171.97,80.963]
[1739960054132,13.33540635,171.99,171.97,80.963]
[1739960054533,13.33540635,171.98,171.97,80.963]
[1739960056539,19.15000635,171.98,171.97,80.963]
[1739960056953,19.15000635,171.98,171.97,0.063]
[1739960058755,19.15000635,171.98,171.93,80.9]
[1739960058756,47.09835488,171.98,171.93,80.9]
[1739960058966,13.33540635,171.94,171.93,80.9]
[1739960059955,20.0,171.95,171.93,80.9]
[1739960060153,13.33540635,171.94,171.93,80.9]
[1739960060458,19.15130635,171.94,171.93,80.9]
[1739960061659,47.10305488,171.94,171.89,51.642]
[1739960061960,47.10305488,171.94,171.88,0.063]
[1739960061961,26.6708127,171.9,171.88,0.063]
[1739960062257,13.33540635,171.89,171.84,219.2]
[1739960062463,13.33540635,171.89,171.82,2.9382]
[1739960062464,13.33540635,171.85,171.82,80.9]
[1739960062663,13.33540635,171.83,171.82,80.9]
[1739960063045,13.33540635,171.84,171.82,80.9]
[1739960063375,13.33540635,171.84,171.82,81.9]
[1739960063860,19.15480635,171.84,171.82,81.9]
[1739960064051,5.8194,171.84,171.82,81.9]
[1739960064456,13.33540635,171.86,171.84,1.0]
[1739960064637,19.15400635,171.87,171.84,81.9]
[1739960064964,39.15400635,171.87,171.84,80.9]
[1739960065351,13.33540635,171.86,171.84,81.9]
[1739960065552,13.33540635,171.86,171.84,80.9]
[1739960066065,19.15440635,171.85,171.84,80.9]
[1739960066565,19.15440635,171.85,171.79,81.963]
[1739960066776,13.33540635,171.82,171.79,80.963]
[1739960067075,13.33540635,171.8,171.79,80.963]
[1739960067246,13.33540635,171.83,171.79,81.963]
[1739960068137,13.33540635,171.83,171.81,1.0]
[1739960068398,19.15490635,171.84,171.81,1.0]
[1739960068554,5.8195,171.84,171.81,1.0]
[1739960068741,13.33540635,171.83,171.8,1.0]
[1739960068939,13.33540635,171.83,171.79,80.963]
[1739960069171,13.33540635,171.82,171.81,1.0]
[1739960069471,5.8195,171.84,171.8,1.0]
[1739960069472,13.33540635,171.83,171.8,1.0]
[1739960069667,13.33540635,171.83,171.79,81.963]
[1739960070174,19.15530635,171.83,171.81,1.0]
[1739960070369,19.15530635,171.83,171.79,81.963]
[1739960070578,13.33540635,171.82,171.79,81.963]
[1739960071165,19.15530635,171.83,171.79,81.963]
[1739960071360,13.33540635,171.83,171.81,1.0]
[1739960071675,19.15510635,171.83,171.8,1.0]
[1739960071977,19.15510635,171.83,171.81,1.0]
[1739960072575,19.15510635,171.83,171.8,1.0]
[1739960072949,19.15510635,171.83,171.8,81.9]
[1739960073273,19.15510635,171.83,171.81,1.0]
[1739960073480,19.15510635,171.83,171.8,81.9]
[1739960074256,19.15510635,171.83,171.81,1.0]
[1739960075756,14.5472,171.86,171.8,80.9]
[1739960075757,13.33540635,171.82,171.8,80.9]
[1739960075958,13.33540635,171.82,171.8,81.9]
[1739960076162,13.33540635,171.83,171.81,1.0]
[1739960076881,13.33540635,171.84,171.81,1.0]
[1739960077480,19.15410635,171.86,171.83,1.0]
[1739960077784,5.8187,171.86,171.83,81.9]
[1739960078984,1.0,171.96,171.88,1.0]
[1739960079281,13.33540635,171.92,171.88,81.9]
[1739960079482,33.33540635,171.92,171.88,81.9]
[1739960079793,13.33540635,171.9,171.88,80.9]
[1739960080156,20.3551,171.95,171.89,1.0]
[1739960080157,13.33540635,171.93,171.89,1.0]
[1739960080655,13.33540635,171.94,171.9,1.0]
[1739960081875,19.15170635,171.93,171.9,1.0]
[1739960082288,13.33540635,171.92,171.9,1.0]
[1739960083185,13.33540635,171.93,171.9,1.0]
[1739960083403,5.816,171.94,171.9,1.0]
[1739960083599,13.33540635,171.93,171.9,1.0]
[1739960084389,19.15170635,171.93,171.9,1.0]
[1739960084904,19.15170635,171.93,171.9,81.9]
[1739960085079,13.33540635,171.95,171.92,1.0]
[1739960085392,13.33540635,171.96,171.93,1.0]
[1739960085781,13.33540635,171.96,171.94,1.0]
[1739960086686,0.03,172.0,171.95,1.0]
[1739960086894,13.33540635,171.96,171.94,219.2]
[1739960087201,13.33540635,171.96,171.94,220.2]
[1739960087405,5.8142,171.99,171.94,220.2]
[1739960087406,13.33540635,171.98,171.95,1.0]
[1739960087698,13.33540635,171.98,171.96,1.0]
[1739960087866,13.33540635,171.98,171.96,81.9]
[1739960088413,0.03,172.0,171.96,81.9]
[1739960088414,0.03,172.0,171.98,1.0]
[1739960089375,0.03,172.0,171.99,1.0]
[1739960094015,0.03,172.0,171.99,220.2]
[1739960095507,0.03,172.0,171.99,219.2]
[1739960096315,0.03,172.0,171.99,220.2]
[1739960099610,0.03,172.0,171.99,219.2]
[1739960099795,13.36540635,172.0,171.99,80.9]
[1739960100197,0.03,172.0,171.99,80.9]
[1739960100601,13.36540635,172.0,171.99,80.9]
[1739960101115,13.36540635,172.0,171.95,220.2]
[1739960101116,19.17930635,172.0,171.95,220.2]
[1739960101324,13.33540635,171.96,171.95,220.2]
[1739960102321,13.33540635,171.99,171.96,1.0]
[1739960102624,5.8439,172.0,171.96,1.0]
[1739960102820,19.17930635,172.0,171.96,1.0]
[1739960103826,5.8439,172.0,171.98,1.0]
[1739960104324,0.03,172.0,171.99,1.0]
[1739960107825,13.36540635,172.0,171.98,219.2]
[1739960108136,13.33540635,171.99,171.93,220.2]
[1739960108308,13.33540635,171.94,171.93,219.2]
[1739960108505,13.33540635,171.94,171.93,80.9]
[1739960109429,13.33540635,171.95,171.93,80.9]